bitfinex/quotes_SOLUSD_20250420
["timestamp","ask_amount","ask_price","bid_price","bid_amount"]
[1745147602702,82.4,138.06,137.99,18.17964886]
[1745147602911,1.0,138.05,137.99,18.17964886]
[1745147603497,1.0,138.05,138.02,26.0]
[1745147603819,1.0,138.07,138.02,26.0]
[1745147605209,1.0,138.07,138.03,264.72]
[1745147605802,9.0105,138.08,138.03,264.72]
[1745147606003,1.0,138.07,138.03,264.72]
[1745147607707,1.0,138.04,138.03,264.72]
[1745147617829,83.4,138.06,138.03,264.72]
[1745147618034,1.0,138.04,138.03,264.72]
[1745147618407,83.4,138.06,138.03,264.72]
[1745147618831,1.5941,138.08,138.03,264.72]
[1745147619922,1.0,138.06,138.03,264.72]
[1745147621433,1.0,138.07,138.03,264.72]
[1745147622306,1.0,138.06,138.03,264.72]
[1745147622807,1.0,138.07,138.03,264.72]
[1745147623239,1.0,138.06,138.03,264.72]
[1745147623536,1.0,138.07,138.03,264.72]
[1745147623714,2.5941,138.08,138.03,264.72]
[1745147625329,1.0,138.06,138.03,264.72]
[1745147625634,2.5941,138.08,138.03,264.72]
[1745147625840,1.0,138.06,138.03,264.72]
[1745147626540,2.5941,138.08,138.03,264.72]
[1745147626718,1.5941,138.08,138.03,264.72]
[1745147626920,1.063,138.08,138.03,264.72]
[1745147628032,0.063,138.08,138.03,264.72]
[1745147628247,1.063,138.08,138.03,264.72]
[1745147628816,0.063,138.08,138.04,18.64964886]
[1745147630211,0.063,138.08,138.07,26.0]
[1745147630632,0.063,138.08,138.07,44.64964886]
[1745147634947,0.063,138.09,138.07,44.64964886]
[1745147635241,0.063,138.09,138.08,16.6]
[1745147636748,0.063,138.09,138.08,35.24964886]
[1745147638048,0.063,138.09,138.08,16.6]
[1745147638625,1.063,138.09,138.08,16.6]
[1745147642052,1.063,138.09,138.08,264.64]
[1745147642351,0.063,138.09,138.08,264.64]
[1745147643552,91.7094,138.09,138.08,264.6]
[1745147647260,9.3094,138.09,138.08,264.6]
[1745147649964,1.063,138.09,138.08,264.6]
[1745147650551,0.063,138.09,138.08,264.6]
[1745147651763,1.063,138.09,138.08,264.6]
[1745147652135,0.063,138.09,138.08,264.6]
[1745147653643,0.063,138.09,138.08,283.24964886]
[1745147660143,0.063,138.09,138.08,290.94424886]
[1745147660349,0.063,138.14,138.12,18.64964886]
[1745147660656,0.063,138.14,138.13,16.56]
[1745147661368,0.063,138.14,138.13,35.20964886]
[1745147670183,0.063,138.14,138.13,16.56]
[1745147670475,1.063,138.14,138.13,16.56]
[1745147672259,0.063,138.14,138.13,16.56]
[1745147672575,1.063,138.14,138.13,16.56]
[1745147673488,0.063,138.14,138.13,16.56]
[1745147673785,1.063,138.14,138.13,16.56]
[1745147674383,0.063,138.14,138.13,16.56]
[1745147675168,0.063,138.14,138.13,264.48]
[1745147675370,1.063,138.14,138.13,264.48]
[1745147682595,1.063,138.14,138.13,264.46]
[1745147687490,27.063,138.14,138.13,264.46]
[1745147689201,2.7243,138.14,138.13,264.46]
[1745147689904,8.9918,138.14,138.13,264.46]
[1745147692484,28.7243,138.14,138.13,264.46]
[1745147693708,2.7243,138.14,138.13,264.46]
[1745147693886,28.7243,138.14,138.13,264.46]
[1745147697422,35.034,138.14,138.13,247.92]
[1745147697604,35.034,138.14,138.13,264.46]
[1745147701616,1.063,138.14,138.13,264.46]
[1745147702615,45.71264886,138.14,138.13,264.46]
[1745147703004,2.7105,138.14,138.13,264.46]
[1745147704423,21.36014886,138.14,138.13,264.46]
[1745147704728,28.7105,138.14,138.13,264.46]
[1745147705417,53.79374886,138.14,138.13,264.46]
[1745147705620,54.79374886,138.14,138.13,264.46]
[1745147706118,53.79374886,138.14,138.13,264.46]
[1745147706706,54.79374886,138.14,138.13,264.46]
[1745147707114,53.79374886,138.14,138.13,264.46]
[1745147707324,54.79374886,138.14,138.13,264.46]
[1745147708335,1.0,138.04,138.03,18.71264886]
[1745147708500,1.0,138.04,138.03,264.623]
[1745147709624,1.0,138.06,138.03,264.623]
[1745147709804,1.0,138.04,138.03,264.623]
[1745147716440,1.0,138.05,138.03,264.623]
[1745147716607,1.0,138.08,138.04,20.31374886]
[1745147717629,1.0,138.09,138.04,20.31374886]
[1745147717928,1.0,138.07,138.04,1.6641]
[1745147720641,1.0,138.05,138.03,264.623]
[1745147720930,1.0,138.04,138.03,264.623]
[1745147733538,1.0,138.1,138.04,18.64964886]
[1745147734342,1.0,138.09,138.04,18.64964886]
[1745147735947,1.0,138.08,138.03,290.623]
[1745147736127,1.0,138.07,138.03,290.623]
[1745147737845,1.0,138.07,138.03,264.623]
[1745147738048,1.0,138.05,138.03,264.623]
[1745147738229,1.0,138.04,138.03,264.623]
[1745147741949,1.0,138.05,138.03,264.623]
[1745147742249,1.0,138.04,138.03,264.623]
[1745147744652,1.0,138.05,138.03,264.623]
[1745147744847,1.0,138.04,138.03,264.623]
[1745147750546,1.0,138.04,138.03,248.103]
[1745147750750,1.0,138.04,138.03,264.603]
[1745147752764,83.4,138.04,138.03,264.603]
[1745147756363,1.0,138.04,138.03,264.603]
[1745147776385,1.0,138.04,137.97,18.71264886]
[1745147776676,1.0,138.04,137.82,67.80315922]
[1745147776677,20.64964886,137.88,137.82,67.80315922]
[1745147776989,19.64964886,137.84,137.82,67.80315922]
[1745147777272,19.64964886,137.84,137.83,16.49]
[1745147777472,20.64964886,137.84,137.83,16.49]
[1745147777676,19.64964886,137.83,137.82,66.16655922]
[1745147777858,20.64964886,137.83,137.82,82.64655922]
[1745147778060,19.64964886,137.83,137.82,82.64655922]
[1745147778683,45.64964886,137.83,137.82,82.64655922]
[1745147780859,45.64964886,137.83,137.82,16.48]
[1745147781181,20.64964886,137.83,137.82,16.48]
[1745147782677,19.64964886,137.83,137.82,16.48]
[1745147782877,20.64964886,137.83,137.82,16.48]
[1745147784669,20.64964886,137.83,137.81,0.03]
[1745147785077,127.01964886,137.8,137.78,0.03]
[1745147785378,45.64964886,137.8,137.78,0.03]
[1745147785681,45.64964886,137.8,137.79,16.51]
[1745147786371,1.0,137.8,137.79,16.51]
[1745147787777,1.0,137.8,137.79,265.02]
[1745147787977,1.0,137.8,137.79,248.52]
[1745147788373,1.0,137.8,137.79,265.02]
[1745147790170,1.0,137.81,137.79,16.5]
[1745147790487,1.0,137.82,137.79,16.5]
[1745147790679,1.0,137.81,137.79,16.5]
[1745147791068,1.0,137.82,137.79,16.5]
[1745147791768,1.0,137.81,137.79,16.5]
[1745147791977,1.0,137.84,137.79,16.5]
[1745147792177,1.0,137.82,137.79,16.5]
[1745147792684,1.0,137.84,137.79,16.5]
[1745147794392,1.0,137.86,137.82,26.0]
[1745147794570,1.0,137.85,137.82,26.0]
[1745147794889,1.0,137.84,137.82,26.0]
[1745147795064,1.0,137.84,137.77,18.64964886]
[1745147795271,1.0,137.84,137.83,248.52]
[1745147795470,1.0,137.84,137.83,265.0]
[1745147796192,1.0,137.85,137.83,265.0]
[1745147796392,1.0,137.84,137.83,265.0]
[1745147800286,1.0,137.84,137.83,264.98]
[1745147803192,1.0,137.85,137.83,264.98]
[1745147803495,1.0,137.84,137.83,264.98]
[1745147808701,19.64964886,137.84,137.83,264.98]
[1745147809792,19.64964886,137.84,137.83,265.0]
[1745147814801,1.0,137.84,137.83,265.0]
[1745147817903,18.64964886,137.56,137.54,16.48]
[1745147818095,1.0,137.55,137.51,248.52]
[1745147818289,1.0,137.53,137.52,16.48]
[1745147819001,1.0,137.55,137.52,16.48]
[1745147819500,1.0,137.58,137.52,16.48]
[1745147819803,1.0,137.6,137.53,18.64964886]
[1745147820001,1.0,137.58,137.53,18.64964886]
[1745147820189,1.0,137.61,137.52,18.64964886]
[1745147820396,1.0,137.6,137.55,26.0]
[1745147820600,1.0,137.6,137.56,16.48]
[1745147820795,1.0,137.61,137.56,16.48]
[1745147820986,1.0,137.63,137.56,16.48]
[1745147821187,1.0,137.65,137.57,18.64964886]
[1745147821485,1.0,137.65,137.58,26.0]
[1745147821998,1.0,137.62,137.6,26.0]
[1745147822217,1.0,137.63,137.61,16.48]
[1745147822412,1.0,137.63,137.62,265.16]
[1745147823011,1.0,137.65,137.62,265.16]
[1745147823206,1.0,137.66,137.62,265.16]
[1745147823413,1.0,137.65,137.62,265.16]
[1745147824009,1.0,137.67,137.63,26.0]
[1745147824210,1.0,137.67,137.62,265.16]
[1745147824413,1.0,137.66,137.63,16.5]
[1745147824592,1.0,137.67,137.63,16.5]
[1745147825004,1.0,137.66,137.63,16.5]
[1745147825199,1.0,137.68,137.63,16.5]
[1745147825607,1.0,137.67,137.63,16.5]
[1745147826320,1.0,137.68,137.63,16.5]
[1745147826693,1.0,137.69,137.63,16.5]
[1745147827100,1.0,137.68,137.63,16.5]
[1745147827303,1.0,137.68,137.64,18.64964886]
[1745147828020,1.0,137.71,137.64,18.64964886]
[1745147828206,1.0,137.69,137.64,18.64964886]
[1745147828602,1.0,137.69,137.62,248.68]
[1745147828802,1.0,137.67,137.63,35.54964886]
[1745147829609,1.0,137.66,137.63,35.54964886]
[1745147829811,1.0,137.66,137.63,16.9]
[1745147830194,1.0,137.68,137.63,16.9]
[1745147830517,1.0,137.66,137.63,16.9]
[1745147831307,1.0,137.68,137.63,16.9]
[1745147831499,1.0,137.66,137.62,274.68]
[1745147831704,1.0,137.66,137.63,16.9]
[1745147832128,1.0,137.66,137.64,16.9]
[1745147832312,1.0,137.66,137.65,16.9]
[1745147832820,1.0,137.68,137.65,16.9]
[1745147833017,1.0,137.66,137.65,16.9]
[1745147837324,82.4,137.64,137.46,0.03]
[1745147837628,1.0,137.63,137.47,274.67711687]
[1745147837826,1.0,137.6,137.47,274.67711687]
[1745147838014,1.0,137.6,137.48,18.64964886]
[1745147838327,1.0,137.6,137.47,355.97711687]
[1745147838625,1.0,137.58,137.48,18.64964886]
[1745147840022,1.0,137.6,137.48,18.64964886]
[1745147840324,1.0,137.58,137.55,26.0]
[1745147840526,1.0,137.58,137.56,16.9]
[1745147841326,1.0,137.57,137.56,16.9]
[1745147842032,1.0,137.58,137.56,16.9]
[1745147842225,1.0,137.57,137.56,16.9]
[1745147844215,1.0,137.57,137.47,248.78]
[1745147844216,1.0,137.51,137.47,248.78]
[1745147844411,1.0,137.51,137.48,16.9]
[1745147845030,1.0,137.52,137.48,16.9]
[1745147845228,1.0,137.5,137.48,16.9]
[1745147845628,1.0,137.51,137.48,16.9]
[1745147846332,1.0,137.52,137.48,16.9]
[1745147846640,1.0,137.51,137.48,16.9]
[1745147847640,1.0,137.52,137.48,16.9]
[1745147847819,1.0,137.51,137.48,16.9]
[1745147848229,1.0,137.51,137.49,16.9]
[1745147848820,1.0,137.52,137.49,16.9]
[1745147849034,1.0,137.51,137.49,16.9]
[1745147850813,1.0,137.5,137.49,16.9]
[1745147851024,1.0,137.52,137.49,16.9]
[1745147851624,108.4,137.56,137.49,16.9]
[1745147851625,1.0,137.51,137.49,16.9]
[1745147852019,1.0,137.54,137.5,18.64964886]
[1745147854033,1.0,137.55,137.5,18.64964886]
[1745147854236,1.0,137.54,137.51,26.0]
[1745147857140,1.0,137.55,137.51,26.0]
[1745147857342,1.0,137.54,137.51,26.0]
[1745147857937,1.0,137.56,137.52,18.64964886]
[1745147858136,1.0,137.56,137.5,18.64964886]
[1745147858336,1.0,137.59,137.5,18.64964886]
[1745147858534,1.0,137.58,137.5,99.94964886]
[1745147858730,1.0,137.59,137.5,99.94964886]
[1745147858934,1.0,137.58,137.5,99.94964886]
[1745147859136,1.0,137.57,137.5,99.94964886]
[1745147860343,1.0,137.58,137.5,99.94964886]
[1745147860554,1.0,137.59,137.5,99.94964886]
[1745147860739,1.0,137.59,137.52,18.64964886]
[1745147860930,1.0,137.6,137.52,18.64964886]
[1745147861249,1.0,137.59,137.56,18.64964886]
[1745147861457,1.0,137.59,137.57,16.72]
[1745147861656,1.0,137.59,137.58,248.96]
[1745147863748,1.0,137.61,137.58,248.96]
[1745147863946,1.0,137.59,137.58,248.96]
[1745147864154,1.0,137.61,137.58,248.96]
[1745147864336,1.0,137.62,137.58,248.96]
[1745147865151,1.0,137.63,137.59,18.64964886]
[1745147865345,1.0,137.64,137.59,18.64964886]
[1745147866833,1.0,137.63,137.59,18.64964886]
[1745147867035,1.0,137.65,137.59,18.64964886]
[1745147867234,1.0,137.63,137.59,18.64964886]
[1745147868057,1.0,137.61,137.58,248.96]
[1745147869562,1.0,137.62,137.59,18.64964886]
[1745147871755,1.0,137.63,137.59,18.64964886]
[1745147871960,1.0,137.62,137.59,18.64964886]
[1745147872664,1.0,137.63,137.59,18.64964886]
[1745147872853,1.0,137.62,137.59,18.64964886]
[1745147873058,1.0,137.63,137.59,18.64964886]
[1745147874964,1.0,137.62,137.59,18.64964886]
[1745147875451,1.0,137.61,137.59,18.64964886]
[1745147876265,1.0,137.62,137.59,18.64964886]
[1745147876470,1.0,137.61,137.59,18.64964886]
[1745147876946,1.0,137.62,137.59,18.64964886]
[1745147877143,1.0,137.63,137.59,18.64964886]
[1745147877569,1.0,137.62,137.59,18.64964886]
[1745147877864,1.0,137.63,137.59,18.64964886]
[1745147878062,1.0,137.64,137.59,18.64964886]
[1745147878268,1.0,137.63,137.59,18.64964886]
[1745147878444,1.0,137.66,137.63,18.64964886]
[1745147878641,1.0,137.67,137.65,18.64964886]
[1745147878843,1.0,137.69,137.65,44.64964886]
[1745147879041,1.0,137.68,137.65,48.24075899]
[1745147879473,1.0,137.68,137.64,16.72]
[1745147879651,1.0,137.66,137.64,35.36964886]
[1745147879974,1.0,137.67,137.65,18.64964886]
[1745147880573,1.0,137.66,137.65,18.64964886]
[1745147881262,1.0,137.66,137.64,20.4151635]
[1745147881565,26.063,137.72,137.64,38.9368776]
[1745147881566,1.0,137.65,137.64,38.9368776]
[1745147881741,1.0,137.66,137.64,38.9368776]
[1745147882141,1.0,137.66,137.65,248.82]
[1745147883170,1.0,137.68,137.65,248.82]
[1745147883971,1.0,137.67,137.65,248.82]
[1745147884769,1.0,137.68,137.65,248.82]
[1745147884967,1.0,137.69,137.66,18.64964886]
[1745147885351,1.0,137.68,137.66,18.64964886]
[1745147885658,1.0,137.69,137.66,18.64964886]
[1745147885862,1.0,137.68,137.66,18.64964886]
[1745147886244,1.0,137.69,137.66,18.64964886]
[1745147886445,1.0,137.67,137.65,248.82]
[1745147886669,1.0,137.68,137.66,18.64964886]
[1745147887760,1.0,137.69,137.66,18.64964886]
[1745147888060,1.0,137.68,137.66,18.64964886]
[1745147888249,1.0,137.69,137.66,18.64964886]
[1745147888573,1.0,137.68,137.66,18.64964886]
[1745147888880,1.0,137.69,137.66,18.64964886]
[1745147889450,1.0,137.68,137.65,248.82]
[1745147889758,1.0,137.68,137.65,267.46964886]
[1745147891779,1.0,137.67,137.65,267.46964886]
[1745147891962,1.0,137.68,137.65,267.46964886]
[1745147892166,1.0,137.67,137.65,267.46964886]
[1745147893178,1.063,137.72,137.66,18.64964886]
[1745147893387,1.0,137.68,137.65,248.82]
[1745147893679,1.0,137.7,137.67,16.5]
[1745147893851,1.0,137.69,137.67,16.5]
[1745147894057,1.0,137.68,137.67,16.5]
[1745147895481,1.0,137.69,137.67,35.14964886]
[1745147895683,1.0,137.68,137.67,35.14964886]
[1745147896272,1.0,137.69,137.67,35.14964886]
[1745147898882,1.0,137.7,137.67,35.14964886]
[1745147899286,0.063,137.72,137.68,18.64964886]
[1745147899287,1.0,137.71,137.68,18.64964886]
[1745147899782,1.063,137.72,137.68,18.64964886]
[1745147901181,0.063,137.72,137.68,18.64964886]
[1745147901364,0.063,137.72,137.68,44.64964886]
[1745147901569,1.063,137.72,137.68,44.64964886]
[1745147902177,0.063,137.72,137.68,44.64964886]
[1745147902484,1.063,137.72,137.68,44.64964886]
[1745147902689,0.063,137.72,137.68,44.64964886]
[1745147902874,1.0,137.71,137.68,44.64964886]
[1745147903286,0.063,137.72,137.67,5.71269935]
[1745147903587,1.0,137.69,137.68,16.48]
[1745147903891,1.0,137.7,137.68,16.48]
[1745147907783,1.063,137.72,137.7,18.64964886]
[1745147908287,1.0,137.71,137.7,18.64964886]
[1745147909193,1.0,137.69,137.66,18.64964886]
[1745147909384,1.0,137.69,137.67,16.48]
[1745147909593,1.0,137.71,137.68,18.64964886]
[1745147912602,1.0,137.7,137.68,18.64964886]
[1745147912968,1.0,137.7,137.64,3.56722874]
[1745147913202,1.0,137.67,137.66,35.12964886]
[1745147913512,1.0,137.68,137.66,35.12964886]
[1745147913980,1.0,137.68,137.66,16.48]
[1745147914186,1.0,137.67,137.66,16.48]
[1745147914496,1.0,137.67,137.66,35.12964886]
[1745147914875,1.0,137.67,137.66,16.48]
[1745147916009,1.0,137.67,137.66,35.12964886]
[1745147916198,1.0,137.67,137.66,16.48]
[1745147920493,1.0,137.68,137.66,35.12964886]
[1745147921194,1.0,137.69,137.67,18.64964886]
[1745147921373,1.0,137.68,137.67,18.64964886]
[1745147922295,1.0,137.68,137.66,16.48]
[1745147922501,1.0,137.67,137.66,35.12964886]
[1745147922993,1.0,137.68,137.66,35.12964886]
[1745147923201,1.0,137.67,137.66,35.12964886]
[1745147923770,1.0,137.68,137.66,35.12964886]
[1745147924286,1.0,137.67,137.66,35.12964886]
[1745147925202,1.0,137.66,137.65,267.46964886]
[1745147925401,1.0,137.66,137.65,284.36964886]
[1745147928601,1.0,137.66,137.65,265.72]
[1745147934807,1.0,137.67,137.65,265.72]
[1745147935184,1.0,137.66,137.65,265.72]
[1745147936303,0.46869301,137.7,137.66,44.64964886]
[1745147936617,0.46869301,137.69,137.66,44.64964886]
[1745147936996,0.46869301,137.7,137.66,44.64964886]
[1745147937515,0.46869301,137.69,137.66,44.64964886]
[1745147937811,0.46869301,137.7,137.66,44.64964886]
[1745147938014,0.46869301,137.69,137.66,44.64964886]
[1745147939486,0.46869301,137.7,137.66,44.64964886]
[1745147939798,0.46869301,137.69,137.66,44.64964886]
[1745147940393,0.46869301,137.7,137.66,44.64964886]
[1745147940608,0.46869301,137.68,137.66,44.64964886]
[1745147940806,0.46869301,137.66,137.65,248.82]
[1745147941020,0.46869301,137.66,137.65,265.72]
[1745147954009,1.27187831,137.66,137.65,265.72]
[1745147957124,0.8031853,137.66,137.65,310.36964886]
[1745147958325,0.46869301,137.69,137.66,18.64964886]
[1745147959534,0.46869301,137.68,137.66,18.64964886]
[1745147960541,0.46869301,137.67,137.66,18.64964886]
[1745147960711,0.46869301,137.67,137.66,35.14964886]
[1745147961434,0.46869301,137.67,137.66,16.5]
[1745147974333,27.99489301,137.67,137.66,16.5]
[1745147974925,1.99489301,137.67,137.66,16.5]
[1745147976137,27.99489301,137.67,137.66,16.5]
[1745147978546,0.46869301,137.67,137.66,16.5]
[1745147990454,82.86869301,137.67,137.66,16.5]
[1745147994255,82.86869301,137.67,137.66,265.34]
[1745147999454,0.46869301,137.67,137.66,283.98964886]
[1745148000040,0.46869301,137.67,137.66,265.34]
[1745148006157,1.46869301,137.67,137.66,265.34]
[1745148007555,0.46869301,137.67,137.66,265.34]
[1745148007757,1.46869301,137.67,137.66,265.34]
[1745148008667,27.46869301,137.67,137.66,265.34]
[1745148008960,26.46869301,137.67,137.66,265.34]
[1745148009167,27.46869301,137.67,137.66,265.34]
[1745148010568,26.46869301,137.67,137.66,265.34]
[1745148010747,27.46869301,137.67,137.66,265.34]
[1745148011458,0.46869301,137.61,137.6,248.89]
[1745148011656,0.46869301,137.61,137.6,265.39]
[1745148011657,32.83739301,137.61,137.6,265.39]
[1745148014470,52.48704187,137.61,137.6,265.39]
[1745148016182,20.11834187,137.59,137.58,0.03]
[1745148016385,20.11834187,137.59,137.58,16.53]
[1745148018378,0.46869301,137.53,137.52,0.03]
[1745148018561,9.57409301,137.53,137.52,16.53]
[1745148019981,0.46869301,137.53,137.52,16.53]
[1745148021453,1.5298,137.63,137.52,35.17964886]
[1745148021454,0.46869301,137.54,137.52,35.17964886]
[1745148021656,8.6201,137.63,137.52,35.17964886]
[1745148021657,0.46869301,137.53,137.52,35.17964886]
[1745148021964,7.6201,137.63,137.52,35.17964886]
[1745148021965,0.46869301,137.54,137.52,35.17964886]
[1745148022164,0.46869301,137.53,137.52,35.17964886]
[1745148022964,0.46869301,137.54,137.52,35.17964886]
[1745148023158,0.46869301,137.53,137.52,35.17964886]
[1745148023360,0.46869301,137.54,137.52,35.17964886]
[1745148023884,0.46869301,137.53,137.52,35.17964886]
[1745148024890,0.46869301,137.54,137.52,35.17964886]
[1745148025061,0.46869301,137.53,137.52,35.17964886]
[1745148025994,0.46869301,137.53,137.52,16.53]
[1745148031102,0.46869301,137.53,137.52,0.03]
[1745148031288,0.46869301,137.53,137.52,16.53]
[1745148037383,0.46869301,137.53,137.52,265.57]
[1745148044983,0.46869301,137.53,137.47,26.0]
[1745148044984,0.46869301,137.23,137.22,25.03772492]
[1745148045298,24.12081111,137.23,137.2,65.1977123]
[1745148045478,2.4595,137.24,137.2,65.1977123]
[1745148046113,43.52,137.3,137.2,65.1977123]
[1745148046299,18.64964886,137.29,137.21,20.4]
[1745148046507,18.64964886,137.29,137.22,20.4]
[1745148046685,18.64964886,137.27,137.22,20.4]
[1745148046888,18.64964886,137.29,137.22,20.4]
[1745148047087,26.0,137.23,137.2,62.6977123]
[1745148047390,26.0,137.22,137.21,21.22]
[1745148047601,82.4,137.3,137.2,62.6977123]
[1745148047602,18.64964886,137.3,137.2,48.4577123]
[1745148047929,18.64964886,137.3,137.21,21.22]
[1745148048081,18.64964886,137.3,137.2,39.27570337]
[1745148048414,18.64964886,137.3,137.17,249.02]
[1745148048415,18.64964886,137.3,137.21,21.22]
[1745148048701,104.16,137.37,137.21,22.22]
[1745148048904,21.76,137.37,137.24,1.0]
[1745148049084,21.76,137.37,137.21,21.22]
[1745148049085,21.76,137.37,137.21,22.22]
[1745148049591,18.64964886,137.34,137.23,1.0]
[1745148049793,40.40964886,137.35,137.21,22.22]
[1745148049991,18.64964886,137.33,137.21,22.22]
[1745148050307,89.0012,137.38,137.28,1.0]
[1745148050480,89.0012,137.38,137.29,270.44]
[1745148051199,82.4,137.47,137.29,271.44]
[1745148051497,82.4,137.47,137.3,21.24]
[1745148051498,18.64964886,137.4,137.3,21.24]
[1745148051705,18.64964886,137.4,137.28,18.64964886]
[1745148051894,19.64964886,137.4,137.26,18.64964886]
[1745148052097,18.64964886,137.4,137.26,18.64964886]
[1745148052298,19.64964886,137.38,137.26,18.64964886]
[1745148052701,18.64964886,137.4,137.26,18.64964886]
[1745148052896,18.64964886,137.38,137.26,18.64964886]
[1745148053292,18.64964886,137.38,137.2,18.64964886]
[1745148053498,18.64964886,137.4,137.18,18.64964886]
[1745148053691,19.64964886,137.4,137.2,19.64964886]
[1745148054592,18.64964886,137.4,137.2,19.64964886]
[1745148055202,1.0,137.41,137.22,18.64964886]
[1745148055406,19.64964886,137.42,137.23,21.76]
[1745148055596,1.0,137.41,137.21,271.6]
[1745148055790,1.0,137.34,137.22,18.64964886]
[1745148055997,1.0,137.41,137.24,18.64964886]
[1745148056201,18.64964886,137.39,137.24,18.64964886]
[1745148056792,18.64964886,137.35,137.21,249.36]
[1745148058020,26.0,137.31,137.23,18.64964886]
[1745148058904,26.0,137.31,137.22,21.24]
[1745148059215,26.0,137.29,137.23,270.62]
[1745148060220,108.4,137.31,137.23,270.62]
[1745148060915,82.4,137.31,137.23,270.62]
[1745148061222,26.0,137.28,137.23,270.62]
[1745148061422,82.4,137.27,137.23,270.62]
[1745148063209,82.4,137.26,137.23,270.62]
[1745148063406,82.4,137.25,137.23,270.62]
[1745148063621,82.4,137.24,137.23,270.62]
[1745148065415,82.4,137.24,137.23,270.72]
[1745148066422,26.0,137.25,137.23,270.72]
[1745148066596,18.64964886,137.28,137.23,270.72]
[1745148066916,26.0,137.27,137.23,270.72]
[1745148068318,26.0,137.24,137.23,270.72]
[1745148068512,66.40964886,137.24,137.23,270.72]
[1745148068717,67.40964886,137.24,137.23,270.72]
[1745148069727,66.40964886,137.24,137.23,270.72]
[1745148069899,66.40964886,137.24,137.09,6.2499]
[1745148070097,11.90076213,137.26,137.1,18.64964886]
[1745148070098,30.55041099,137.26,137.1,18.64964886]
[1745148070304,82.4,137.22,137.1,18.64964886]
[1745148072615,82.4,137.21,137.13,26.0]
[1745148072816,82.4,137.21,137.13,21.0]
[1745148073319,82.4,137.21,137.14,18.64964886]
[1745148075206,82.4,137.21,137.15,270.88]
[1745148076112,82.4,137.25,137.16,18.64964886]
[1745148076315,83.19425922,137.26,137.16,46.20254886]
[1745148076522,83.19425922,137.26,137.19,26.0]
[1745148076730,83.19425922,137.26,137.2,21.26]
[1745148079701,83.19425922,137.26,137.19,18.64964886]
[1745148079913,83.19425922,137.26,137.2,20.82]
[1745148080312,83.19425922,137.26,137.21,20.82]
[1745148080524,0.79425922,137.26,137.21,20.82]
[1745148083233,82.4,137.29,137.21,20.82]
[1745148083529,82.4,137.28,137.21,20.82]
[1745148084035,82.4,137.27,137.21,20.82]
[1745148084431,82.4,137.26,137.21,20.82]
[1745148084637,82.4,137.25,137.22,20.8]
[1745148085225,0.79425922,137.28,137.23,18.64964886]
[1745148085433,0.063,137.35,137.23,19.64964886]
[1745148085616,0.063,137.35,137.24,19.64964886]
[1745148085929,0.063,137.35,137.25,1.5629]